[Event "Kragero Resort Chess A 2019"]
[Site "Kragero"]
[Date "2019.02.21"]
[Round "3.29"]
[White "Mkrtchyan, Anahit D."]
[Black "Lund, Terje"]
[Result "1-0"]
[ECO "B03"]
[WhiteElo "1841"]
[BlackElo "2099"]
[Annotator "NA"]
[PlyCount "163"]
[EventDate "2019.02.20"]
[EventType "swiss"]
[EventCountry "NOR"]
[SourceTitle "playchess.com"]
[Source "ChessBase"]
[SourceQuality "1"]
[TimeControl "5400+30"]

1. e4 {[%emt 0:00:00]} Nf6 {[%emt 0:00:06]} 2. e5 {[%emt 0:00:00]} Nd5 {[%emt 0:00:05]} 3. d4 {[%emt 0:00:00]} d6 {[%emt 0:00:06]} 4. c4 {[%emt 0:00:00]} Nb6 {[%emt 0:00:06]} 5. exd6 {[%emt 0:00:00]} exd6 {[%emt 0:00:06]} 6. Nc3 {[%emt 0:00:00]} Be7 {[%emt 0:00:06]} 7. Bd3 {[%emt 0:00:00]} O-O {[%emt 0:00:38]} 8. Nge2 {[%emt 0:00:23]} Nc6 {[%emt 0:02:47]} 9. O-O {[%emt 0:00:13]} Bf6 {[%emt 0:01:53]} 10. Be3 {[%emt 0:00:20]} Nb4 {[%emt 0:11:22]} 11. b3 {[%emt 0:02:56]} Nxd3 {[%emt 0:01:47]} 12. Qxd3 {[%emt 0:00:05]} Re8 {[%emt 0:05:04]} 13. Rad1 {[%emt 0:02:26]} g6 {[%emt 0:10:43]} 14. Ng3 {[%emt 0:05:54]} c6 {[%emt 0:14:46]} 15. d5 {[%emt 0:06:54]} c5 {[%emt 0:03:53]} 16. Nce4 {[%emt 0:01:43]} Be5 {[%emt 0:03:52]} 17. f4 {[%emt 0:05:17]} Bg7 {[%emt 0:02:18]} 18. f5 {[%emt 0:01:28]} Nd7 {[%emt 0:01:37]} 19. Bf4 {[%emt 0:07:09]} Bd4+ {[%emt 0:07:27]} 20. Kh1 {[%emt 0:01:09]} Ne5 {[%emt 0:01:32]} 21. Bxe5 {[%emt 0:00:35]} Rxe5 {[%emt 0:02:47]} 22. f6 {[%emt 0:04:11]} Qf8 {[%emt 0:08:53]} 23. Rde1 {[%emt 0:11:05]} Bg4 {[%emt 0:01:42]} 24. Rf4 {[%emt 0:02:57]} Bh5 {[%emt 0:04:09]} 25. Rh4 {[%emt 0:14:16]} Qh6 {[%emt 0:07:58]} 26. Nxh5 {[%emt 0:05:03]} Rxh5 {[%emt 0:00:46]} 27. Rxh5 {[%emt 0:00:22]} Qxh5 {[%emt 0:00:02]} 28. Qe2 {[%emt 0:09:49]} Qxe2 {[%emt 0:01:02]} 29. Rxe2 {[%emt 0:00:05]} Re8 {[%emt 0:00:18]} 30. g4 {[%emt 0:00:50]} h6 {[%emt 0:03:59]} 31. Kg2 {[%emt 0:00:09]} g5 {[%emt 0:01:40]} 32. Kf3 {[%emt 0:00:46]} Rd8 {[%emt 0:00:12]} 33. h4 {[%emt 0:01:44]} gxh4 {[%emt 0:00:09]} 34. Rh2 {[%emt 0:00:32]} Kh7 {[%emt 0:00:19]} 35. Rxh4 {[%emt 0:01:09]} Kg6 {[%emt 0:00:06]} 36. Rh5 {[%emt 0:01:52]} b6 {[%emt 0:01:51]} 37. Kf4 {[%emt 0:03:00]} Rd7 {[%emt 0:00:51]} 38. Rf5 {[%emt 0:00:57]} Rd8 {[%emt 0:00:30]} 39. Rh5 {[%emt 0:03:14]} Rd7 {[%emt 0:00:21]} 40. Kg3 {[%emt 0:00:58]} Rd8 {[%emt 0:00:33]} 41. Kh4 {[%emt 0:00:37]} Rh8 {[%emt 0:00:43]} 42. Nxd6 {[%emt 0:02:01]} Bxf6+ {[%emt 0:00:09]} 43. Kg3 {[%emt 0:00:09]} Bg5 {[%emt 0:00:33]} 44. Ne4 {[%emt 0:00:39]} Re8 {[%emt 0:00:30]} 45. Kf3 {[%emt 0:00:49]} f5 {[%emt 0:00:23]} 46. Nxg5 {[%emt 0:06:02]} hxg5 {[%emt 0:00:02]} 47. Rh2 {[%emt 0:00:06]} f4 {[%emt 0:01:02]} 48. Rd2 {[%emt 0:00:42]} Kf6 {[%emt 0:00:30]} 49. Rd3 {[%emt 0:00:38]} Ke5 {[%emt 0:00:29]} 50. d6 {[%emt 0:00:43]} Rd8 {[%emt 0:01:42]} 51. Rd5+ {[%emt 0:00:05]} Kf6 {[%emt 0:00:14]} 52. Rf5+ {[%emt 0:00:20]} Kg6 {[%emt 0:00:12]} 53. Rd5 {[%emt 0:00:05]} Kf6 {[%emt 0:00:19]} 54. d7 {[%emt 0:00:20]} Kg6 {[%emt 0:00:25]} 55. Ke4 {[%emt 0:00:26]} Kf6 {[%emt 0:00:10]} 56. Rf5+ {[%emt 0:00:59]} Kg6 {[%emt 0:00:06]} 57. Rd5 {[%emt 0:00:17]} Kf6 {[%emt 0:00:01]} 58. a3 {[%emt 0:00:32]} a6 {[%emt 0:01:01]} 59. b4 {[%emt 0:00:24]} cxb4 {[%emt 0:01:31]} 60. axb4 {[%emt 0:00:03]} Ke7 {[%emt 0:00:39]} 61. Rxg5 {[%emt 0:01:25]} a5 {[%emt 0:00:32]} 62. bxa5 {[%emt 0:00:14]} bxa5 {[%emt 0:00:01]} 63. Rxa5 {[%emt 0:00:25]} Rxd7 {[%emt 0:00:07]} 64. Rd5 {[%emt 0:01:21]} Rc7 {[%emt 0:01:08]} 65. c5 {[%emt 0:00:09]} Ke6 {[%emt 0:00:56]} 66. Re5+ {[%emt 0:00:08]} Kf6 {[%emt 0:00:34]} 67. Kxf4 {[%emt 0:00:26]} Ra7 {[%emt 0:00:01]} 68. g5+ {[%emt 0:00:15]} Kf7 {[%emt 0:00:22]} 69. Kf5 {[%emt 0:00:15]} Ra1 {[%emt 0:00:10]} 70. g6+ {[%emt 0:00:15]} Kf8 {[%emt 0:00:31]} 71. Kf6 {[%emt 0:00:11]} Rf1+ {[%emt 0:00:19]} 72. Rf5 {[%emt 0:00:03]} Rc1 {[%emt 0:00:16]} 73. Ke6+ {[%emt 0:03:07]} Kg7 {[%emt 0:00:32]} 74. Rg5 {[%emt 0:00:20]} Rc2 {[%emt 0:01:40]} 75. Kd6 {[%emt 0:00:11]} Rd2+ {[%emt 0:00:21]} 76. Kc7 {[%emt 0:00:38]} Rc2 {[%emt 0:00:35]} 77. c6 {[%emt 0:00:03]} Rb2 {[%emt 0:00:29]} 78. Kc8 {[%emt 0:00:13]} Rc2 {[%emt 0:00:06]} 79. c7 {[%emt 0:00:11]} Rc1 {[%emt 0:00:48]} 80. Kb7 {[%emt 0:00:13]} Rb1+ {[%emt 0:00:29]} 81. Kc6 {[%emt 0:00:03]} Rc1+ {[%emt 0:00:20]} 82. Rc5 {[%emt 0:00:04]} 1-0

[Event "Kragero Resort Chess A 2019"]
[Site "Kragero"]
[Date "2019.02.21"]
[Round "3.30"]
[White "Khachatryan, Marieta"]
[Black "Jonsson, Gauti Pall"]
[Result "0-1"]
[ECO "B27"]
[WhiteElo "1779"]
[BlackElo "2070"]
[Annotator "NA"]
[PlyCount "100"]
[EventDate "2019.02.20"]
[EventType "swiss"]
[EventCountry "NOR"]
[SourceTitle "playchess.com"]
[Source "ChessBase"]
[SourceQuality "1"]
[TimeControl "5400+30"]

1. e4 {[%emt 0:00:00]} c5 {[%emt 0:00:00]} 2. Nf3 {[%emt 0:00:00]} g6 {[%emt 0:00:09]} 3. d4 {[%emt 0:00:00]} cxd4 {[%emt 0:00:14]} 4. Qxd4 {[%emt 0:00:00]} Nf6 {[%emt 0:00:20]} 5. Qa4 {[%emt 0:00:11]} Nc6 {[%emt 0:01:20]} 6. Nc3 {[%emt 0:00:08]} d6 {[%emt 0:01:20]} 7. e5 {[%emt 0:02:37]} dxe5 {[%emt 0:01:48]} 8. Nxe5 {[%emt 0:00:07]} Bd7 {[%emt 0:01:53]} 9. Nxd7 {[%emt 0:00:19]} Nxd7 {[%emt 0:01:49]} 10. Bb5 {[%emt 0:02:02]} Bg7 {[%emt 0:01:01]} 11. Bxc6 {[%emt 0:04:25]} bxc6 {[%emt 0:00:11]} 12. Qxc6 {[%emt 0:01:46]} Rc8 {[%emt 0:00:50]} 13. Qa4 {[%emt 0:03:20]} Rxc3 {[%emt 0:05:58]} 14. bxc3 {[%emt 0:00:47]} Bxc3+ {[%emt 0:00:08]} 15. Bd2 {[%emt 0:00:40]} Bxa1 {[%emt 0:01:11]} 16. c3 {[%emt 0:00:23]} O-O {[%emt 0:05:47]} 17. O-O {[%emt 0:00:20]} Nb6 {[%emt 0:03:39]} 18. Qc2 {[%emt 0:01:51]} Bb2 {[%emt 0:01:20]} 19. Bh6 {[%emt 0:01:35]} Ba3 {[%emt 0:01:23]} 20. c4 {[%emt 0:03:22]} Bc5 {[%emt 0:03:01]} 21. Rd1 {[%emt 0:03:34]} Qc7 {[%emt 0:00:59]} 22. Qc3 {[%emt 0:02:48]} e5 {[%emt 0:01:25]} 23. Bxf8 {[%emt 0:01:22]} Kxf8 {[%emt 0:00:10]} 24. h3 {[%emt 0:06:15]} Kg7 {[%emt 0:01:00]} 25. Rc1 {[%emt 0:04:31]} Nd7 {[%emt 0:02:08]} 26. Rb1 {[%emt 0:11:23]} Bd4 {[%emt 0:02:33]} 27. Qc2 {[%emt 0:01:49]} Nc5 {[%emt 0:00:25]} 28. Rd1 {[%emt 0:05:00]} Qc6 {[%emt 0:01:01]} 29. Qe2 {[%emt 0:01:26]} Ne4 {[%emt 0:00:41]} 30. Rf1 {[%emt 0:00:38]} Ng3 {[%emt 0:00:16]} 31. Qd3 {[%emt 0:00:21]} Nxf1 {[%emt 0:00:11]} 32. Kxf1 {[%emt 0:00:04]} Qb6 {[%emt 0:00:20]} 33. Qc2 {[%emt 0:00:13]} Qb2 {[%emt 0:00:33]} 34. Qxb2 {[%emt 0:00:18]} Bxb2 {[%emt 0:00:06]} 35. c5 {[%emt 0:00:03]} Bd4 {[%emt 0:00:16]} 36. c6 {[%emt 0:00:06]} Bb6 {[%emt 0:00:05]} 37. Ke2 {[%emt 0:00:04]} Kf6 {[%emt 0:00:13]} 38. g3 {[%emt 0:00:23]} Ke6 {[%emt 0:00:07]} 39. f4 {[%emt 0:00:03]} exf4 {[%emt 0:00:11]} 40. gxf4 {[%emt 0:00:04]} Kd6 {[%emt 0:00:08]} 41. Kf3 {[%emt 0:00:05]} Kxc6 {[%emt 0:00:07]} 42. Kg4 {[%emt 0:00:04]} Bd8 {[%emt 0:00:40]} 43. f5 {[%emt 0:00:38]} h5+ {[%emt 0:00:14]} 44. Kf4 {[%emt 0:00:06]} g5+ {[%emt 0:00:07]} 45. Ke4 {[%emt 0:00:04]} f6 {[%emt 0:00:10]} 46. Kd4 {[%emt 0:00:06]} Bc7 {[%emt 0:00:09]} 47. Ke4 {[%emt 0:00:07]} g4 {[%emt 0:00:09]} 48. hxg4 {[%emt 0:00:05]} hxg4 {[%emt 0:00:04]} 49. Ke3 {[%emt 0:00:10]} Kd5 {[%emt 0:00:09]} 50. Kf2 {[%emt 0:00:07]} Ke5 {[%emt 0:00:39]} 0-1

[Event "Kragero Resort Chess A 2019"]
[Site "Kragero"]
[Date "2019.02.21"]
[Round "3.31"]
[White "Boe, Oeyvind"]
[Black "Stray, Gunnar"]
[Result "0-1"]
[ECO "D70"]
[WhiteElo "1908"]
[BlackElo "1994"]
[Annotator "NA"]
[PlyCount "104"]
[EventDate "2019.02.20"]
[EventType "swiss"]
[EventCountry "NOR"]
[SourceTitle "playchess.com"]
[Source "ChessBase"]
[SourceQuality "1"]
[TimeControl "5400+30"]

1. d4 {[%emt 0:00:00]} d5 {[%emt 0:22:37]} 2. c4 {[%emt 0:00:00]} c6 {[%emt 0:00:04]} 3. Nf3 {[%emt 0:00:00]} Nf6 {[%emt 0:00:06]} 4. e3 {[%emt 0:00:01]} g6 {[%emt 0:00:15]} 5. Be2 {[%emt 0:00:48]} Bg7 {[%emt 0:00:08]} 6. O-O {[%emt 0:00:05]} O-O {[%emt 0:00:07]} 7. b4 {[%emt 0:01:25]} Nbd7 {[%emt 0:02:10]} 8. Bb2 {[%emt 0:00:13]} dxc4 {[%emt 0:01:25]} 9. Bxc4 {[%emt 0:00:16]} Nb6 {[%emt 0:00:14]} 10. Bb3 {[%emt 0:00:55]} Nbd5 {[%emt 0:01:31]} 11. a3 {[%emt 0:13:26]} a5 {[%emt 0:02:54]} 12. Re1 {[%emt 0:23:02]} Ne4 {[%emt 0:05:07]} 13. Nfd2 {[%emt 0:01:10]} Nxd2 {[%emt 0:01:08]} 14. Qxd2 {[%emt 0:01:27]} axb4 {[%emt 0:00:36]} 15. e4 {[%emt 0:00:55]} Nc3 {[%emt 0:00:47]} 16. Nxc3 {[%emt 0:00:36]} bxc3 {[%emt 0:00:08]} 17. Bxc3 {[%emt 0:00:14]} Qb6 {[%emt 0:03:36]} 18. Reb1 {[%emt 0:00:32]} Qa6 {[%emt 0:00:12]} 19. Bb4 {[%emt 0:00:56]} Re8 {[%emt 0:09:03]} 20. Qf4 {[%emt 0:01:46]} e6 {[%emt 0:00:58]} 21. e5 {[%emt 0:07:35]} Qd3 {[%emt 0:02:14]} 22. Rb2 {[%emt 0:01:31]} Qf5 {[%emt 0:03:27]} 23. Qe3 {[%emt 0:01:07]} Qh5 {[%emt 0:07:17]} 24. Qg3 {[%emt 0:06:22]} Bf8 {[%emt 0:04:07]} 25. Bd1 {[%emt 0:01:16]} Qh6 {[%emt 0:00:43]} 26. Bd2 {[%emt 0:00:36]} Qg7 {[%emt 0:00:08]} 27. Qc3 {[%emt 0:07:20]} Be7 {[%emt 0:01:29]} 28. Bf3 {[%emt 0:00:53]} Rd8 {[%emt 0:05:55]} 29. a4 {[%emt 0:00:54]} Qf8 {[%emt 0:05:36]} 30. Be3 {[%emt 0:02:05]} f5 {[%emt 0:01:22]} 31. g3 {[%emt 0:10:23]} g5 {[%emt 0:02:30]} 32. Rc2 {[%emt 0:03:26]} Qg7 {[%emt 0:05:15]} 33. Kh1 {[%emt 0:00:24]} g4 {[%emt 0:00:24]} 34. Bg2 {[%emt 0:00:23]} h5 {[%emt 0:00:23]} 35. f4 {[%emt 0:08:07]} Kf7 {[%emt 0:01:32]} 36. Kg1 {[%emt 0:00:24]} h4 {[%emt 0:01:14]} 37. a5 {[%emt 0:01:07]} Qf8 {[%emt 0:02:18]} 38. Rb2 {[%emt 0:00:31]} h3 {[%emt 0:00:45]} 39. Bh1 {[%emt 0:00:10]} Ra6 {[%emt 0:00:37]} 40. Rab1 {[%emt 0:01:41]} Rd7 {[%emt 0:00:38]} 41. Rb6 {[%emt 0:00:33]} Rxb6 {[%emt 0:00:28]} 42. Rxb6 {[%emt 0:00:21]} Bd8 {[%emt 0:02:41]} 43. Rb1 {[%emt 0:00:15]} Bc7 {[%emt 0:00:24]} 44. Kf2 {[%emt 0:00:32]} Qd8 {[%emt 0:00:54]} 45. Ra1 {[%emt 0:01:29]} Bb8 {[%emt 0:00:17]} 46. Qc5 {[%emt 0:00:47]} Qe7 {[%emt 0:02:06]} 47. Qc4 {[%emt 0:02:22]} Ba7 {[%emt 0:01:28]} 48. Ke2 {[%emt 0:00:19]} Qd8 {[%emt 0:00:33]} 49. Ra4 {[%emt 0:01:19]} b5 {[%emt 0:01:39]} 50. axb6 {[%emt 0:00:11]} Qxb6 {[%emt 0:00:17]} 51. Bxc6 {[%emt 0:01:59]} Rc7 {[%emt 0:00:39]} 52. Qxe6+ {[%emt 0:01:12]} Bxe6 {[%emt 0:00:20]} 0-1

[Event "Kragero Resort Chess A 2019"]
[Site "Kragero"]
[Date "2019.02.22"]
[Round "4.3"]
[White "Urkedal, Frode Olav Olsen"]
[Black "Beerdsen, Thomas"]
[Result "0-1"]
[ECO "A80"]
[WhiteElo "2522"]
[BlackElo "2454"]
[Annotator "RC"]
[PlyCount "96"]
[EventDate "2019.02.20"]
[EventType "swiss"]
[EventCountry "NOR"]
[SourceTitle "playchess.com"]
[Source "ChessBase"]
[SourceQuality "1"]
[TimeControl "5400+30"]

1. d4 {[%emt 0:00:00]} f5 {[%emt 0:04:51]} 2. Bg5 {[%emt 0:00:00]} h6 {[%emt 0:00:04]} 3. Bh4 {[%emt 0:00:00]} g5 {[%emt 0:00:06]} 4. e3 {[%emt 0:00:00]} Nf6 {[%emt 0:00:05]} 5. Bg3 {[%emt 0:00:00]} d6 {[%emt 0:00:08]} 6. Nc3 {[%emt 0:00:07]} e6 {[%emt 0:01:34]} 7. h4 {[%emt 0:03:05]} Rg8 {[%emt 0:00:06]} 8. hxg5 {[%emt 0:00:05]} hxg5 {[%emt 0:00:05]} 9. Qd2 {[%emt 0:00:04]} Qe7 {[%emt 0:04:56]} 10. O-O-O {[%emt 0:01:39]} a6 {[%emt 0:04:51]} 11. a3 {[%emt 0:02:33]} b5 {[%emt 0:03:09]} 12. d5 {[%emt 0:02:42]} e5 {[%emt 0:05:55]} 13. Bd3 {[%emt 0:09:48]} Qf7 {[%emt 0:13:49]} 14. Qe1 {[%emt 0:18:36]} c5 {[%emt 0:03:12]} 15. dxc6 {[%emt 0:02:46]} Be6 {[%emt 0:10:53]} 16. c7 {[%emt 0:12:10]} Nc6 {[%emt 0:03:35]} 17. f3 {[%emt 0:08:58]} b4 {[%emt 0:08:31]} 18. axb4 {[%emt 0:06:05]} Qxc7 {[%emt 0:03:50]} 19. e4 {[%emt 0:01:40]} Nxb4 {[%emt 0:03:44]} 20. exf5 {[%emt 0:00:24]} Nxd3+ {[%emt 0:00:36]} 21. Rxd3 {[%emt 0:01:10]} Bxf5 {[%emt 0:00:49]} 22. Ne4 {[%emt 0:06:34]} Bxe4 {[%emt 0:02:57]} 23. fxe4 {[%emt 0:00:05]} Qc4 {[%emt 0:02:39]} 24. Nf3 {[%emt 0:03:38]} Qxe4 {[%emt 0:08:06]} 25. Qa5 {[%emt 0:03:57]} Rc8 {[%emt 0:02:20]} 26. Kb1 {[%emt 0:01:35]} Be7 {[%emt 0:02:42]} 27. Re1 {[%emt 0:00:55]} Qb7 {[%emt 0:01:40]} 28. Nxe5 {[%emt 0:05:21]} dxe5 {[%emt 0:01:05]} 29. Bxe5 {[%emt 0:03:30]} Kf8 {[%emt 0:01:14]} 30. Rf3 {[%emt 0:02:40]} Rg6 {[%emt 0:00:49]} 31. Ref1 {[%emt 0:02:07]} Rc6 {[%emt 0:02:29]} 32. Qd5 {[%emt 0:01:48]} Qb5 {[%emt 0:01:12]} 33. Qd4 {[%emt 0:01:20]} Kf7 {[%emt 0:00:58]} 34. Rf5 {[%emt 0:00:37]} Qc4 {[%emt 0:01:06]} 35. Qf2 {[%emt 0:00:28]} a5 {[%emt 0:00:43]} 36. b3 {[%emt 0:00:11]} Qa6 {[%emt 0:00:33]} 37. Qf3 {[%emt 0:00:21]} a4 {[%emt 0:01:18]} 38. Qd5+ {[%emt 0:00:54]} Ke8 {[%emt 0:00:52]} 39. Bxf6 {[%emt 0:00:53]} axb3 {[%emt 0:00:05]} 40. cxb3 {[%emt 0:00:35]} Rcxf6 {[%emt 0:01:10]} 41. Rxf6 {[%emt 0:00:19]} Rxf6 {[%emt 0:00:30]} 42. Qg8+ {[%emt 0:00:13]} Kd7 {[%emt 0:00:35]} 43. Qd5+ {[%emt 0:00:16]} Rd6 {[%emt 0:00:18]} 44. Qf5+ {[%emt 0:00:06]} Kd8 {[%emt 0:00:04]} 45. Rf3 {[%emt 0:01:24]} Rd1+ {[%emt 0:00:39]} 46. Kc2 {[%emt 0:00:05]} Qe2+ {[%emt 0:00:03]} 47. Kc3 {[%emt 0:00:02]} Qd2+ {[%emt 0:00:03]} 48. Kc4 {[%emt 0:00:04]} Qb4# {[%emt 0:00:03] Kd4 [%emt 00:00:08]} 0-1

[Event "Kragero Resort Chess A 2019"]
[Site "Kragero"]
[Date "2019.02.22"]
[Round "4.4"]
[White "Lie, Kjetil A."]
[Black "Kaasen, Tor Fredrik"]
[Result "1-0"]
[ECO "A01"]
[WhiteElo "2538"]
[BlackElo "2387"]
[Annotator "ChessBase"]
[PlyCount "77"]
[EventDate "2019.02.20"]
[EventType "swiss"]
[EventCountry "NOR"]
[SourceTitle "playchess.com"]
[Source "ChessBase"]
[SourceQuality "1"]
[TimeControl "5400+30"]

1. b3 {[%emt 0:00:00]} e5 {[%emt 0:01:24]} 2. Bb2 {[%emt 0:00:09]} Nc6 {[%emt 0:00:10]} 3. e3 {[%emt 0:00:11]} Nf6 {[%emt 0:00:17]} 4. Nf3 {[%emt 0:00:28]} e4 {[%emt 0:01:10]} 5. Nd4 {[%emt 0:00:18]} Nxd4 {[%emt 0:00:15]} 6. Bxd4 {[%emt 0:00:06]} d5 {[%emt 0:00:06]} 7. c4 {[%emt 0:00:46]} dxc4 {[%emt 0:05:56]} 8. Bxc4 {[%emt 0:01:12]} Be7 {[%emt 0:02:10]} 9. Nc3 {[%emt 0:04:53]} O-O {[%emt 0:16:13]} 10. Rc1 {[%emt 0:03:26]} Re8 {[%emt 0:01:43]} 11. O-O {[%emt 0:12:39]} c5 {[%emt 0:03:02]} 12. Bxf6 {[%emt 0:08:06]} Bxf6 {[%emt 0:00:10]} 13. f3 {[%emt 0:16:30]} Bf5 {[%emt 0:12:03]} 14. fxe4 {[%emt 0:14:53]} Bxe4 {[%emt 0:00:31]} 15. Nxe4 {[%emt 0:01:32]} Rxe4 {[%emt 0:00:10]} 16. Qf3 {[%emt 0:01:04]} Re7 {[%emt 0:03:26]} 17. Bd5 {[%emt 0:03:24]} Qa5 {[%emt 0:03:34]} 18. Bxb7 {[%emt 0:01:55]} Rd8 {[%emt 0:02:23]} 19. Be4 {[%emt 0:06:32]} Re5 {[%emt 0:04:36]} 20. d3 {[%emt 0:04:05]} Qxa2 {[%emt 0:04:09]} 21. Ra1 {[%emt 0:01:55]} Qxb3 {[%emt 0:00:49]} 22. Rxa7 {[%emt 0:00:40]} h5 {[%emt 0:07:39]} 23. Ra6 {[%emt 0:03:01]} Rde8 {[%emt 0:03:42]} 24. Rd6 {[%emt 0:01:42]} Kf8 {[%emt 0:06:58]} 25. Bc6 {[%emt 0:04:07]} Rc8 {[%emt 0:09:45]} 26. Bd7 {[%emt 0:00:24]} Rd8 {[%emt 0:01:31]} 27. Ba4 {[%emt 0:02:03]} Qb8 {[%emt 0:00:41]} 28. Rxf6 {[%emt 0:00:22]} gxf6 {[%emt 0:00:38]} 29. Qxf6 {[%emt 0:00:05]} Qc7 {[%emt 0:06:39]} 30. Qh8+ {[%emt 0:00:48]} Ke7 {[%emt 0:00:01]} 31. Rxf7+ {[%emt 0:00:26]} Kxf7 {[%emt 0:00:08]} 32. Qh7+ {[%emt 0:00:04]} Kf6 {[%emt 0:00:08]} 33. Qxc7 {[%emt 0:00:06]} Rxd3 {[%emt 0:00:04]} 34. e4 {[%emt 0:01:40]} Rd4 {[%emt 0:00:47]} 35. Bc6 {[%emt 0:00:44]} Re7 {[%emt 0:01:38]} 36. Qf4+ {[%emt 0:00:09]} Ke6 {[%emt 0:00:37]} 37. Qf5+ {[%emt 0:00:44]} Kd6 {[%emt 0:00:09]} 38. Qf6+ {[%emt 0:00:41]} Re6 {[%emt 0:00:35]} 39. e5+ {[%emt 0:00:05]} 1-0

[Event "Kragero Resort Chess A 2019"]
[Site "Kragero"]
[Date "2019.02.22"]
[Round "4.5"]
[White "Notkevich, Benjamin Arvola"]
[Black "Stefansson, Vignir Vatnar"]
[Result "1-0"]
[ECO "C02"]
[WhiteElo "2498"]
[BlackElo "2263"]
[Annotator "ChessBase"]
[PlyCount "103"]
[EventDate "2019.02.20"]
[EventType "swiss"]
[EventCountry "NOR"]
[SourceTitle "playchess.com"]
[Source "ChessBase"]
[SourceQuality "1"]
[TimeControl "5400+30"]

1. e4 {[%emt 0:00:00]} e6 {[%emt 0:16:00]} 2. d4 {[%emt 0:00:00]} d5 {[%emt 0:00:46]} 3. e5 {[%emt 0:00:00]} c5 {[%emt 0:00:05]} 4. c3 {[%emt 0:00:00]} Bd7 {[%emt 0:00:05]} 5. Nf3 {[%emt 0:00:03]} Qb6 {[%emt 0:00:06]} 6. Bd3 {[%emt 0:01:29]} cxd4 {[%emt 0:05:10]} 7. cxd4 {[%emt 0:01:27]} Bb5 {[%emt 0:01:43]} 8. O-O {[%emt 0:07:45]} Bxd3 {[%emt 0:02:03]} 9. Qxd3 {[%emt 0:00:05]} Nc6 {[%emt 0:00:23]} 10. a3 {[%emt 0:01:13]} a5 {[%emt 0:03:26]} 11. Nc3 {[%emt 0:00:45]} a4 {[%emt 0:01:18]} 12. Be3 {[%emt 0:02:37]} Nge7 {[%emt 0:03:16]} 13. Rfc1 {[%emt 0:12:24]} h5 {[%emt 0:04:20]} 14. Rab1 {[%emt 0:04:34]} Nf5 {[%emt 0:03:14]} 15. Nxd5 {[%emt 0:01:44]} Qd8 {[%emt 0:01:03]} 16. Nc3 {[%emt 0:01:29]} Ra5 {[%emt 0:00:05]} 17. Rd1 {[%emt 0:02:39]} Be7 {[%emt 0:01:30]} 18. Qe4 {[%emt 0:04:23]} O-O {[%emt 0:01:37]} 19. Rd2 {[%emt 0:03:46]} Qc8 {[%emt 0:01:09]} 20. Rbd1 {[%emt 0:01:50]} Rd8 {[%emt 0:00:08]} 21. h3 {[%emt 0:06:37]} h4 {[%emt 0:01:44]} 22. Qg4 {[%emt 0:04:29]} b5 {[%emt 0:01:07]} 23. d5 {[%emt 0:10:47]} Nxe3 {[%emt 0:00:48]} 24. fxe3 {[%emt 0:00:05]} exd5 {[%emt 0:06:48]} 25. Nxd5 {[%emt 0:00:18]} Qxg4 {[%emt 0:00:35]} 26. Nxe7+ {[%emt 0:01:05]} Kf8 {[%emt 0:00:33]} 27. Rxd8+ {[%emt 0:00:53]} Nxd8 {[%emt 0:00:53]} 28. hxg4 {[%emt 0:00:06]} Kxe7 {[%emt 0:00:07]} 29. Nxh4 {[%emt 0:03:03]} g6 {[%emt 0:00:04]} 30. Rd5 {[%emt 0:00:04]} Nc6 {[%emt 0:05:55]} 31. Rc5 {[%emt 0:00:10]} Nb8 {[%emt 0:00:12]} 32. Rc7+ {[%emt 0:05:28]} Nd7 {[%emt 0:00:43]} 33. Nf3 {[%emt 0:00:06]} Ra6 {[%emt 0:04:30]} 34. Ng5 {[%emt 0:11:06]} Kd8 {[%emt 0:03:24]} 35. Rb7 {[%emt 0:00:39]} Nxe5 {[%emt 0:00:07]} 36. Rxb5 {[%emt 0:04:14]} f6 {[%emt 0:01:53]} 37. Ne4 {[%emt 0:01:42]} Nxg4 {[%emt 0:00:50]} 38. Nc5 {[%emt 0:00:10]} Rc6 {[%emt 0:03:56]} 39. e4 {[%emt 0:00:06]} Ke7 {[%emt 0:02:02]} 40. g3 {[%emt 0:00:15]} Kd6 {[%emt 0:00:10]} 41. Nxa4 {[%emt 0:00:26]} Rc2 {[%emt 0:00:13]} 42. Rd5+ {[%emt 0:00:50]} Ke7 {[%emt 0:01:10]} 43. Rc5 {[%emt 0:03:06]} Re2 {[%emt 0:00:44]} 44. b4 {[%emt 0:02:23]} Ne3 {[%emt 0:06:59]} 45. b5 {[%emt 0:01:07]} Rg2+ {[%emt 0:03:15]} 46. Kh1 {[%emt 0:00:05]} Rxg3 {[%emt 0:00:04]} 47. b6 {[%emt 0:02:39]} Rh3+ {[%emt 0:00:04]} 48. Kg1 {[%emt 0:00:04]} Rh8 {[%emt 0:00:06]} 49. Rc6 {[%emt 0:00:23]} f5 {[%emt 0:02:40]} 50. Nc5 {[%emt 0:00:45]} Nc4 {[%emt 0:00:48]} 51. b7 {[%emt 0:01:08]} Na5 {[%emt 0:00:47]} 52. Rc7+ {[%emt 0:01:15]} 1-0

[Event "Kragero Resort Chess A 2019"]
[Site "Kragero"]
[Date "2019.02.22"]
[Round "4.7"]
[White "Fossum, Oystein Boyum"]
[Black "Hasangatin, Ramil"]
[Result "0-1"]
[ECO "A11"]
[WhiteElo "2250"]
[BlackElo "2485"]
[Annotator "ChessBase"]
[PlyCount "48"]
[EventDate "2019.02.20"]
[EventType "swiss"]
[EventCountry "NOR"]
[SourceTitle "playchess.com"]
[Source "ChessBase"]
[SourceQuality "1"]
[TimeControl "5400+30"]

1. Nf3 {[%emt 0:00:00]} Nf6 {[%emt 0:00:42]} 2. c4 {[%emt 0:00:03]} c6 {[%emt 0:00:40]} 3. g3 {[%emt 0:01:28]} d5 {[%emt 0:00:21]} 4. Bg2 {[%emt 0:01:09]} dxc4 {[%emt 0:02:45]} 5. a4 {[%emt 0:01:03]} Qd5 {[%emt 0:10:15]} 6. Na3 {[%emt 0:04:36]} e5 {[%emt 0:01:43]} 7. O-O {[%emt 0:01:51]} e4 {[%emt 0:05:13]} 8. Ne1 {[%emt 0:01:15]} Na6 {[%emt 0:02:41]} 9. Nec2 {[%emt 0:40:17]} Bc5 {[%emt 0:03:20]} 10. d4 {[%emt 0:04:16]} cxd3 {[%emt 0:00:47]} 11. exd3 {[%emt 0:00:15]} Qxd3 {[%emt 0:03:11]} 12. Qe1 {[%emt 0:00:47]} Bg4 {[%emt 0:04:31]} 13. b4 {[%emt 0:02:44]} Be7 {[%emt 0:00:51]} 14. b5 {[%emt 0:00:56]} cxb5 {[%emt 0:03:21]} 15. axb5 {[%emt 0:00:53]} Nc5 {[%emt 0:00:14]} 16. Nb4 {[%emt 0:01:30]} Qd7 {[%emt 0:03:03]} 17. Bb2 {[%emt 0:06:20]} O-O {[%emt 0:00:38]} 18. f3 {[%emt 0:01:09]} exf3 {[%emt 0:02:42]} 19. Bxf3 {[%emt 0:02:50]} Bxf3 {[%emt 0:01:40]} 20. Rxf3 {[%emt 0:00:05]} Nce4 {[%emt 0:00:25]} 21. Nd3 {[%emt 0:01:50]} Ng5 {[%emt 0:07:47]} 22. Re3 {[%emt 0:03:39]} Nd5 {[%emt 0:01:18]} 23. Rd1 {[%emt 0:01:39]} Nxe3 {[%emt 0:02:28]} 24. Qxe3 {[%emt 0:00:04]} Qe6 {[%emt 0:00:36]} 0-1